bitfinex/quotes_BTCUSD_20230117
["timestamp","ask_amount","ask_price","bid_price","bid_amount"]
[1673990050498,0.12970731,21317.0,21315.0,0.001]
[1673990050728,1.06792531,21317.0,21315.0,0.001]
[1673990050983,1.06792531,21317.0,21314.0,0.10906031]
[1673990051244,1.06792531,21317.0,21314.0,0.22122414]
[1673990052262,0.938218,21317.0,21314.0,0.22122414]
[1673990052770,6.938218,21317.0,21314.0,0.22122414]
[1673990053039,0.320794,21316.0,21314.0,0.22122414]
[1673990053299,0.320794,21315.0,21314.0,0.22122414]
[1673990053552,6.938245,21317.0,21314.0,0.22122414]
[1673990054054,0.320794,21316.0,21314.0,0.22122414]
[1673990054307,0.320794,21315.0,21314.0,0.22122414]
[1673990054556,6.469122,21317.0,21314.0,0.59612414]
[1673990054807,6.469122,21317.0,21315.0,0.02212241]
[1673990055064,6.469122,21317.0,21315.0,0.32212241]
[1673990055316,6.0,21317.0,21315.0,0.32212241]
[1673990055819,6.0,21317.0,21315.0,0.02212241]
[1673990056072,0.320794,21316.0,21315.0,0.02212241]
[1673990056292,6.0,21317.0,21315.0,0.02212241]
[1673990056573,6.0,21317.0,21314.0,1.23446214]
[1673990056841,0.320794,21316.0,21314.0,0.76528714]
[1673990057115,6.553111,21317.0,21315.0,0.001]
[1673990057362,6.553111,21317.0,21314.0,0.65312331]
[1673990057363,0.320794,21316.0,21314.0,0.10906031]
[1673990057611,0.320794,21315.0,21314.0,0.11006031]
[1673990057858,7.022233,21317.0,21314.0,0.29824294]
[1673990058118,7.022232,21317.0,21314.0,0.29824294]
[1673990058383,0.320794,21316.0,21314.0,0.29824294]
[1673990058633,7.022242,21317.0,21314.0,0.29824294]
[1673990058902,6.637121,21317.0,21315.0,0.001]
[1673990059164,0.32069294,21316.0,21312.0,0.469202]
[1673990059427,0.32069294,21316.0,21314.0,0.001]
[1673990059428,0.789951,21315.0,21314.0,0.001]
[1673990059938,1.409104,21315.0,21314.0,0.001]
[1673990060208,1.409104,21315.0,21310.0,0.19690948]
[1673990060460,1.409104,21315.0,21311.0,0.06661925]
[1673990060461,0.320852,21314.0,21311.0,0.06661925]
[1673990060733,0.938366,21314.0,21311.0,0.06661925]
[1673990060987,0.469157,21315.0,21311.0,1.2707232]
[1673990060988,0.084,21315.0,21311.0,1.2707232]
[1673990061248,0.084,21315.0,21312.0,0.27234954]
[1673990061503,0.90247911,21316.0,21312.0,0.74156554]
[1673990061504,1.37162511,21316.0,21312.0,0.74156554]
[1673990061759,1.37162511,21316.0,21312.0,0.93229149]
[1673990061760,0.052,21315.0,21312.0,0.93229149]
[1673990062105,0.469153,21315.0,21313.0,0.13800209]
[1673990063317,0.478153,21315.0,21313.0,0.13800209]
[1673990063558,0.469153,21315.0,21313.0,0.13800209]
[1673990063808,0.521153,21315.0,21313.0,0.13900209]
[1673990065095,0.521153,21315.0,21313.0,0.001]
[1673990065346,0.320852,21314.0,21313.0,0.001]
[1673990066125,0.93835,21314.0,21313.0,0.001]
[1673990066377,0.469175,21314.0,21311.0,0.543731]
[1673990066630,0.93835,21314.0,21311.0,0.0745]
[1673990066884,0.521175,21314.0,21313.0,0.001]
[1673990067384,0.842027,21314.0,21313.0,0.001]
[1673990067644,0.469167,21315.0,21311.0,0.80647677]
[1673990067645,0.469167,21315.0,21311.0,0.33723677]
[1673990067946,0.009,21314.0,21312.0,0.96698592]
[1673990068204,0.469167,21315.0,21312.0,0.96698592]
[1673990068487,0.90248111,21316.0,21313.0,0.001]
[1673990068488,0.052,21314.0,21313.0,0.001]
[1673990069001,0.052,21314.0,21313.0,0.09085]
[1673990069256,0.90248111,21316.0,21313.0,0.2699852]
[1673990069501,0.004,21314.0,21313.0,0.46071115]
[1673990069825,0.90248111,21316.0,21313.0,0.5699852]
[1673990070038,0.052,21314.0,21313.0,0.7401822]
[1673990070306,0.90248111,21316.0,21313.0,1.0391822]
[1673990070557,1.45562511,21316.0,21313.0,0.1811352]
[1673990070817,0.320852,21315.0,21313.0,0.00935851]
[1673990071101,1.45562511,21316.0,21313.0,0.00935851]
[1673990071102,0.320852,21314.0,21313.0,0.00935851]
[1673990071331,1.45564011,21316.0,21313.0,0.00935851]
[1673990071591,1.45561911,21316.0,21313.0,0.00935851]
[1673990071849,0.320852,21315.0,21313.0,0.13557082]
[1673990072109,1.45563311,21316.0,21313.0,0.13557082]
[1673990072620,1.37163311,21316.0,21313.0,0.13457082]
[1673990073134,1.37163311,21316.0,21314.0,0.13124194]
[1673990073135,0.052,21315.0,21314.0,0.13124194]
[1673990073394,0.052,21315.0,21313.0,0.13457082]
[1673990073395,0.469153,21315.0,21313.0,0.13457082]
[1673990073642,0.320852,21314.0,21313.0,0.13557082]
[1673990073900,0.469153,21315.0,21313.0,0.13457082]
[1673990074157,0.553153,21315.0,21314.0,0.001]
[1673990074423,0.469153,21315.0,21313.0,0.13457082]
[1673990075389,0.90248111,21316.0,21313.0,0.60375882]
[1673990075907,0.052,21314.0,21313.0,0.47854651]
[1673990076155,0.90248111,21316.0,21313.0,0.85244651]
[1673990076412,0.052,21315.0,21313.0,1.04417246]
[1673990076663,6.47012126,21317.0,21314.0,0.17422539]
[1673990076922,0.084,21316.0,21315.0,0.0742]
[1673990077686,6.469129,21317.0,21315.0,0.0742]
[1673990077946,6.469129,21317.0,21316.0,0.07175954]
[1673990077947,6.084,21317.0,21316.0,0.07175954]
[1673990078950,6.0,21317.0,21316.0,0.07175954]
[1673990079709,6.554109,21317.0,21316.0,0.001]
[1673990079959,6.405852,21317.0,21316.0,0.001]
[1673990080250,6.085,21317.0,21316.0,0.09085]
[1673990080737,6.08488337,21317.0,21316.0,0.39085]
[1673990080989,6.08488337,21317.0,21316.0,0.27234303]
[1673990081505,6.08488337,21317.0,21315.0,0.0749]
[1673990081760,6.55399237,21317.0,21315.0,0.0749]
[1673990082018,6.55399237,21317.0,21313.0,0.88984027]
[1673990082019,6.55399237,21317.0,21314.0,0.0745]
[1673990082265,7.02310137,21317.0,21314.0,0.0745]
[1673990082565,6.93087763,21317.0,21314.0,0.19628832]
[1673990082770,7.01587763,21317.0,21315.0,0.001]
[1673990083031,6.93087763,21317.0,21314.0,0.19628832]
[1673990084292,6.93087763,21317.0,21314.0,0.49628832]
[1673990084547,6.93087763,21317.0,21315.0,0.10861286]
[1673990084802,7.01587763,21317.0,21315.0,0.001]
[1673990085143,7.01587763,21317.0,21313.0,0.00835851]
[1673990085144,0.320852,21316.0,21313.0,0.00835851]
[1673990085306,0.320852,21315.0,21314.0,0.001]
[1673990085553,0.320852,21315.0,21313.0,0.00835851]
[1673990085554,0.469153,21315.0,21313.0,0.00835851]
[1673990086329,0.554148,21316.0,21313.0,0.24281496]
[1673990086581,0.469148,21316.0,21313.0,0.35411672]
[1673990086831,0.053,21315.0,21313.0,0.00935851]
[1673990087074,0.522158,21315.0,21313.0,0.00935851]
[1673990087346,0.06764149,21313.0,21312.0,0.93681429]
[1673990087640,0.30731416,21315.0,21312.0,1.4681526]
[1673990087851,0.30731416,21315.0,21313.0,0.001]
[1673990088095,0.30731416,21315.0,21312.0,0.76819585]
[1673990088358,0.004,21313.0,21312.0,0.30399585]
[1673990088619,0.938321,21315.0,21312.0,0.94550746]
[1673990088880,0.938321,21315.0,21313.0,0.321852]
[1673990088881,0.991321,21315.0,21313.0,0.321852]
[1673990089147,0.938321,21315.0,21312.0,0.52062949]
[1673990089405,0.004,21313.0,21312.0,0.11729409]
[1673990089671,0.004,21313.0,21312.0,1.12285557]
[1673990089929,0.004,21313.0,21312.0,1.62525041]
[1673990090231,0.938345,21315.0,21312.0,1.6204222]
[1673990090459,0.938345,21315.0,21312.0,0.46828608]
[1673990090460,0.469197,21313.0,21312.0,0.46828608]
[1673990090710,0.469197,21313.0,21312.0,0.99042577]
[1673990090971,0.469194,21314.0,21312.0,0.17225382]
[1673990091219,0.469188,21314.0,21311.0,0.28109199]
[1673990091471,0.469188,21314.0,21313.0,0.001]
[1673990091472,0.938381,21314.0,21313.0,0.001]
[1673990091730,0.938381,21314.0,21311.0,0.11247355]
[1673990092003,0.938381,21314.0,21312.0,0.001]
[1673990092004,0.373852,21313.0,21312.0,0.001]
[1673990092258,0.373852,21313.0,21309.0,0.20511551]
[1673990092259,1.259246,21313.0,21309.0,0.20511551]
[1673990092526,0.320852,21312.0,21309.0,0.43380352]
[1673990092909,0.938453,21312.0,21309.0,0.43369226]
[1673990093061,0.938453,21312.0,21311.0,0.001]
[1673990093333,1.259305,21312.0,21309.0,0.34116156]
[1673990093585,1.259305,21312.0,21309.0,0.22968801]
[1673990093586,0.320852,21311.0,21309.0,0.22968801]
[1673990093848,1.259378,21310.0,21309.0,0.22968801]
[1673990094132,1.259378,21310.0,21309.0,0.001]
[1673990094371,1.259378,21310.0,21307.0,0.11247355]
[1673990094628,0.320852,21309.0,21307.0,0.11247355]
[1673990094880,0.938542,21310.0,21307.0,0.25517424]
[1673990095376,0.469263,21310.0,21307.0,0.60554635]
[1673990095639,0.469263,21310.0,21307.0,0.62329962]
[1673990097413,0.469263,21310.0,21307.0,0.45468118]
[1673990098016,0.469263,21310.0,21308.0,0.17868574]
[1673990098425,0.469263,21310.0,21307.0,0.45468118]
[1673990098936,0.469263,21310.0,21307.0,0.62329962]
[1673990099191,0.469263,21310.0,21307.0,0.45468118]
[1673990099192,0.555263,21310.0,21307.0,0.45468118]
[1673990099454,0.00099619,21312.0,21309.0,0.24657673]
[1673990099699,0.00099619,21312.0,21311.0,0.0746]
[1673990099954,0.469167,21315.0,21311.0,0.0746]
[1673990100204,0.49240951,21315.0,21312.0,0.48644495]
[1673990100458,0.96158151,21315.0,21313.0,0.04864449]
[1673990100701,0.96158151,21315.0,21313.0,0.23937044]
[1673990100945,0.469172,21315.0,21313.0,0.04864449]
[1673990102198,0.555172,21315.0,21313.0,0.04864449]
[1673990102453,0.469172,21315.0,21313.0,0.04864449]
[1673990102713,1.024325,21315.0,21313.0,0.04864449]
[1673990102979,0.555153,21315.0,21313.0,0.04864449]
[1673990103481,0.555153,21315.0,21312.0,0.0749]
[1673990104770,0.469153,21315.0,21312.0,0.3749]
[1673990104998,0.554153,21315.0,21312.0,0.3759]
[1673990105249,0.554153,21315.0,21312.0,0.0759]
[1673990106517,1.023306,21315.0,21312.0,0.0759]
[1673990106769,1.023306,21315.0,21312.0,0.001]
[1673990107026,0.320852,21314.0,21312.0,0.001]
[1673990107286,0.938372,21314.0,21312.0,0.001]
[1673990107791,0.320852,21313.0,21312.0,0.001]
[1673990108138,1.259246,21313.0,21312.0,0.001]
[1673990108307,0.938394,21313.0,21312.0,0.001]
[1673990108801,0.938394,21313.0,21310.0,0.09252764]
[1673990109070,0.938394,21313.0,21310.0,0.3732973]
[1673990110373,0.942394,21313.0,21310.0,0.3782973]
[1673990111463,0.938394,21313.0,21310.0,0.4481973]
[1673990112811,1.023394,21313.0,21310.0,0.4491973]
[1673990113100,0.938394,21313.0,21310.0,0.4481973]
[1673990113411,0.1,21312.0,21310.0,0.4481973]
[1673990114528,0.1,21312.0,21310.0,0.63668764]
[1673990114809,0.1,21312.0,21310.0,0.16742764]
[1673990115076,0.1,21312.0,21310.0,0.16842764]
[1673990115334,0.1,21312.0,21310.0,0.16742764]
[1673990115598,0.185,21312.0,21310.0,0.09352764]
[1673990116165,0.185,21312.0,21310.0,0.16842764]
[1673990116688,0.1,21312.0,21310.0,0.16742764]
[1673990116951,0.153,21312.0,21310.0,0.16842764]
[1673990117230,0.1,21312.0,21310.0,0.16742764]
[1673990117663,0.185,21312.0,21310.0,0.16842764]
[1673990117665,0.654221,21312.0,21310.0,0.16842764]
[1673990118446,0.754221,21312.0,21310.0,0.001]
[1673990118700,0.320852,21311.0,21310.0,0.001]
[1673990119226,1.259334,21311.0,21310.0,0.001]
[1673990119781,1.259334,21311.0,21307.0,0.0749]
[1673990120046,1.00921875,21310.0,21305.0,0.91428398]
[1673990120303,1.00921875,21310.0,21306.0,0.27105252]
[1673990120304,1.359436,21309.0,21306.0,0.27105252]
[1673990120561,1.038584,21309.0,21306.0,0.27105252]
[1673990120819,0.938584,21309.0,21306.0,0.27105252]
[1673990121088,1.038584,21309.0,21306.0,0.27105252]
[1673990121354,1.038584,21309.0,21305.0,0.27630654]
[1673990121355,0.938584,21309.0,21305.0,0.27630654]
[1673990121637,0.938584,21309.0,21305.0,0.44492498]
[1673990121895,0.947584,21309.0,21306.0,0.005]
[1673990122144,0.947584,21309.0,21306.0,0.305]
[1673990122415,0.947584,21309.0,21306.0,0.005]
[1673990122680,0.938584,21309.0,21306.0,0.69723198]
[1673990122941,0.947584,21309.0,21305.0,0.36099199]
[1673990123201,1.038584,21309.0,21305.0,0.0749]
[1673990123453,1.038584,21309.0,21305.0,0.48737355]
[1673990123454,1.03847115,21309.0,21305.0,0.48737355]
[1673990123723,0.93847115,21309.0,21305.0,0.48737355]
[1673990124211,0.94247115,21309.0,21306.0,0.14857119]
[1673990124212,1.03847115,21309.0,21306.0,0.14857119]
[1673990124479,1.02347115,21309.0,21306.0,0.14857119]
[1673990126086,0.93847115,21309.0,21305.0,0.18737355]
[1673990126344,1.12447115,21309.0,21305.0,0.0749]
[1673990126612,1.56255599,21309.0,21305.0,0.0749]
[1673990126880,1.47655599,21309.0,21305.0,0.0749]
[1673990127163,0.84424071,21308.0,21305.0,0.0759]
[1673990127421,0.420852,21307.0,21304.0,0.1354662]
[1673990127700,0.320852,21306.0,21304.0,0.01548911]
[1673990127977,0.320852,21305.0,21304.0,0.01548911]
[1673990128238,1.37677545,21307.0,21305.0,0.001]
[1673990128239,0.938729,21306.0,21305.0,0.001]
[1673990128494,0.938729,21306.0,21304.0,0.01548911]
[1673990128754,0.942729,21306.0,21304.0,0.02048911]
[1673990129497,0.942729,21306.0,21304.0,0.10774583]
[1673990130018,0.942729,21306.0,21304.0,0.02048911]
[1673990130789,0.938729,21306.0,21304.0,0.01548911]
[1673990131312,0.469371,21306.0,21304.0,0.01548911]
[1673990131595,0.469371,21306.0,21305.0,0.16575]
[1673990131596,0.053,21306.0,21305.0,0.16575]
[1673990131899,0.52338871,21308.0,21305.0,0.485602]
[1673990131900,0.99270671,21308.0,21305.0,0.485602]
[1673990132173,0.004,21306.0,21305.0,0.96046953]
[1673990132435,0.004,21306.0,21305.0,1.06974358]
[1673990132690,0.004,21306.0,21305.0,1.30074558]
[1673990134596,0.469305,21309.0,21305.0,1.30074558]
[1673990134597,1.37755671,21310.0,21305.0,2.00232778]
[1673990134857,0.086,21308.0,21306.0,0.88523491]
[1673990135126,0.93952393,21310.0,21307.0,0.395717]
[1673990135381,0.93952093,21310.0,21307.0,0.26562595]
[1673990135664,0.93952093,21310.0,21307.0,0.0749]
[1673990135921,0.93952093,21310.0,21308.0,0.08106933]
[1673990136426,1.024556,21310.0,21308.0,0.08106933]
[1673990136951,0.55528,21310.0,21308.0,0.08106933]
[1673990137262,0.46928,21310.0,21308.0,0.08106933]
[1673990137462,0.086,21310.0,21309.0,0.0749]
[1673990137737,0.086,21310.0,21309.0,0.12945125]
[1673990138520,0.355261,21311.0,21309.0,0.45030325]
[1673990138775,0.008,21310.0,21309.0,0.12945125]
[1673990139039,0.1,21312.0,21309.0,0.82520325]
[1673990139302,0.1,21312.0,21310.0,0.45958794]
[1673990139576,0.1,21312.0,21311.0,0.320819]
[1673990140071,0.1,21312.0,21310.0,0.64428594]
[1673990140344,0.1,21312.0,21311.0,0.16632636]
[1673990141154,0.1,21312.0,21310.0,0.56938594]
[1673990141155,0.1,21312.0,21310.0,0.10012394]
[1673990141414,0.577219,21312.0,21311.0,0.007]
[1673990141672,0.569219,21312.0,21309.0,0.52381725]
[1673990141935,0.108,21312.0,21311.0,0.007]
[1673990142191,0.1,21312.0,21309.0,0.52381625]
[1673990142461,0.108,21312.0,21311.0,0.007]
[1673990142717,0.1,21312.0,21310.0,0.10880741]
[1673990142973,0.569228,21312.0,21310.0,0.10880741]
[1673990143504,0.1,21312.0,21310.0,0.10880741]
[1673990143811,0.108,21312.0,21311.0,0.007]
[1673990144058,0.1,21312.0,21310.0,0.57806741]
[1673990144307,0.108,21312.0,21310.0,0.57806741]
[1673990144555,0.1,21312.0,21310.0,0.57806741]
[1673990144824,0.108,21312.0,21310.0,0.58306741]
[1673990145094,0.108,21312.0,21310.0,0.57806741]
[1673990145095,0.1,21312.0,21310.0,0.57806741]
[1673990145349,0.108,21312.0,21310.0,0.57806741]
[1673990145619,0.1,21312.0,21310.0,0.57806741]
[1673990145870,0.1,21312.0,21310.0,0.10880741]
[1673990146131,0.1,21312.0,21311.0,0.06326297]
[1673990146411,0.1,21312.0,21311.0,1.52008199]
[1673990146659,0.108,21312.0,21311.0,1.82008199]
[1673990146908,0.116,21312.0,21311.0,1.82008199]
[1673990147159,0.1,21312.0,21311.0,1.82008199]
[1673990147410,0.101,21312.0,21311.0,1.88808199]
[1673990147907,0.1,21312.0,21311.0,1.82008199]
[1673990148171,0.101,21312.0,21311.0,1.14842438]
[1673990148418,0.101,21312.0,21311.0,0.51928338]
[1673990148419,0.1,21312.0,21311.0,0.51928338]
[1673990148731,0.1,21312.0,21311.0,0.13516841]
[1673990149458,0.101,21312.0,21311.0,0.22016841]
[1673990149669,0.1,21312.0,21311.0,0.13516841]
[1673990149920,0.108,21312.0,21311.0,0.14016841]
[1673990150954,0.108,21312.0,21311.0,0.01738339]
[1673990151215,1.046438,21312.0,21311.0,0.01738339]
[1673990151474,1.36729,21312.0,21311.0,0.01738339]
[1673990157187,1.51729,21312.0,21311.0,0.01738339]
[1673990158057,1.36729,21312.0,21311.0,0.01738339]
[1673990158520,2.46278036,21312.0,21311.0,0.01738339]
[1673990158730,2.36278036,21312.0,21311.0,0.01738339]
[1673990159410,2.36294054,21312.0,21311.0,0.01738339]
[1673990159620,1.92909121,21312.0,21311.0,0.01738339]
[1673990159853,1.77909121,21312.0,21311.0,0.01738339]
[1673990161646,1.92909121,21312.0,21311.0,0.01738339]
[1673990162083,2.36290158,21312.0,21311.0,0.01738339]
[1673990162530,2.43780158,21312.0,21311.0,0.01738339]
[1673990162746,2.92395196,21312.0,21311.0,0.01728716]
[1673990163385,2.62395196,21312.0,21311.0,0.01728716]
[1673990163912,2.35410158,21312.0,21311.0,0.01228716]
[1673990164169,2.43110158,21312.0,21311.0,0.01328716]
[1673990166531,2.58110158,21312.0,21311.0,0.01328716]
[1673990167039,2.43110158,21312.0,21311.0,0.01328716]
[1673990167545,2.86064789,21312.0,21311.0,0.01328716]
[1673990168091,3.16064789,21312.0,21311.0,0.01328716]
[1673990168855,3.04879751,21312.0,21311.0,0.01328716]
[1673990169099,3.1604871,21312.0,21311.0,0.01328716]
[1673990169352,3.04879751,21312.0,21311.0,0.01328716]
[1673990169869,3.75509158,21312.0,21311.0,0.01328716]
[1673990170136,3.75494619,21312.0,21311.0,0.01328716]
[1673990170877,3.28084402,21312.0,21311.0,0.01328716]
[1673990171712,3.72006259,21312.0,21311.0,0.01328716]
[1673990172013,4.30927548,21312.0,21311.0,0.01328716]
[1673990172301,4.30927548,21312.0,21304.0,0.01548911]
[1673990172302,0.01192642,21310.0,21304.0,0.01548911]
[1673990172554,0.11167346,21308.0,21304.0,0.01548911]
[1673990172809,0.0749,21306.0,21304.0,0.01548911]
[1673990173070,2.23429374,21305.0,21304.0,0.01548911]
[1673990173331,2.23429374,21305.0,21304.0,0.01648911]
[1673990173612,2.23429374,21305.0,21303.0,0.01308257]
[1673990173613,2.20919374,21305.0,21303.0,0.01308257]
[1673990173878,0.72632989,21304.0,21303.0,0.01308257]
[1673990174132,1.259642,21304.0,21303.0,0.01308257]
[1673990174676,1.66471967,21304.0,21303.0,0.01308257]
[1673990174923,1.259642,21304.0,21303.0,0.01308257]
[1673990175177,1.6649277,21304.0,21303.0,0.01308257]
[1673990176530,1.350642,21304.0,21303.0,0.01308257]
[1673990177057,1.67129172,21304.0,21303.0,0.01308257]
[1673990177582,2.00525654,21304.0,21303.0,0.01308257]
[1673990178095,1.97129172,21304.0,21303.0,0.01308257]
[1673990178348,1.67129172,21304.0,21303.0,0.01308257]
[1673990178608,1.89619172,21304.0,21303.0,0.01308257]
[1673990178854,1.90469172,21304.0,21303.0,0.01308257]
[1673990179112,2.20469172,21304.0,21303.0,0.01308257]
[1673990180167,2.62565389,21304.0,21303.0,0.01308257]
[1673990180427,2.32565389,21304.0,21303.0,0.01308257]
[1673990180685,1.90469172,21304.0,21303.0,0.01308257]
[1673990180947,2.20469172,21304.0,21303.0,0.01308257]
[1673990181528,2.68189341,21304.0,21303.0,0.01308257]
[1673990182553,1.90469172,21304.0,21303.0,0.01308257]
[1673990182827,1.67129172,21304.0,21303.0,0.01308257]
[1673990183057,1.350642,21304.0,21303.0,0.01308257]
[1673990183310,1.350642,21304.0,21298.0,0.65841887]
[1673990183311,0.37896461,21303.0,21298.0,0.65841887]
[1673990183572,0.420852,21302.0,21300.0,0.0749]
[1673990183846,0.37896461,21303.0,21301.0,0.0749]
[1673990184106,0.37993655,21303.0,21302.0,0.4576792]
[1673990184341,0.37896461,21303.0,21302.0,0.4576792]
[1673990185133,0.1048,21305.0,21302.0,1.2271182]
[1673990185397,0.1048,21305.0,21303.0,0.359684]
[1673990185649,0.1048,21305.0,21303.0,0.0749]
[1673990186454,0.1048,21305.0,21304.0,0.395052]
[1673990186788,0.1408,21305.0,21304.0,0.55306339]
[1673990186973,0.1048,21305.0,21304.0,0.320852]
[1673990187236,0.1048,21305.0,21303.0,0.0829]
[1673990187237,0.1138,21305.0,21303.0,0.0829]
[1673990187493,0.1048,21305.0,21303.0,0.0749]
[1673990187780,0.1408,21305.0,21304.0,0.001]
[1673990188025,0.1048,21305.0,21303.0,0.0749]
[1673990188261,0.1108,21305.0,21303.0,0.0829]
[1673990189366,0.1108,21305.0,21303.0,0.008]
[1673990189367,0.580178,21305.0,21303.0,0.008]
[1673990190858,0.1108,21305.0,21303.0,0.008]
[1673990191666,0.580173,21305.0,21303.0,0.008]
[1673990194465,0.1108,21305.0,21303.0,0.1644564]
[1673990194722,0.1108,21305.0,21304.0,0.320852]
[1673990195234,0.1108,21305.0,21304.0,0.284734]
[1673990195490,0.1108,21305.0,21303.0,0.2390564]
[1673990195711,0.1108,21305.0,21303.0,0.0826]
[1673990196246,0.1108,21305.0,21303.0,0.008]
[1673990196753,0.1108,21305.0,21302.0,0.469426]
[1673990197070,0.610175,21305.0,21304.0,0.001]
[1673990197301,0.574175,21305.0,21304.0,0.320852]
[1673990197565,0.580175,21305.0,21303.0,0.008]
[1673990197822,0.580175,21305.0,21304.0,0.0790278]
[1673990197823,0.574175,21305.0,21304.0,0.0790278]
[1673990198089,0.1138,21305.0,21302.0,0.477426]
[1673990198325,0.1048,21305.0,21303.0,0.4695768]
[1673990198624,0.1408,21305.0,21304.0,0.285752]
[1673990198884,0.1408,21305.0,21304.0,0.55137795]
[1673990199143,0.12322465,21305.0,21304.0,2.64002429]
[1673990199426,0.12322465,21305.0,21304.0,2.35643321]
[1673990199672,0.08722465,21305.0,21304.0,2.35543321]
[1673990199918,0.08722465,21305.0,21304.0,2.25543321]
[1673990199919,0.16522465,21305.0,21304.0,2.25543321]
[1673990200175,0.08722465,21305.0,21304.0,2.25543321]
[1673990200451,0.08722465,21305.0,21304.0,2.42405165]
[1673990200722,0.08722465,21305.0,21304.0,2.25543321]
[1673990200984,0.09422465,21305.0,21304.0,2.26843321]
[1673990201512,0.09422465,21305.0,21304.0,3.06908017]
[1673990201769,0.09422465,21305.0,21304.0,2.41843321]
[1673990202033,0.09422465,21305.0,21304.0,2.58705165]
[1673990202358,0.09422465,21305.0,21304.0,3.1822332]
[1673990202518,0.09422465,21305.0,21304.0,3.29463139]
[1673990203546,0.09422465,21305.0,21304.0,4.16419506]
[1673990203547,0.08722465,21305.0,21304.0,4.16419506]
[1673990203797,0.08722465,21305.0,21304.0,3.89681464]
[1673990204048,0.09422465,21305.0,21304.0,4.65653639]
[1673990204317,0.09422465,21305.0,21304.0,4.22422411]
[1673990204587,0.09422465,21305.0,21304.0,3.94384369]
[1673990204855,0.09422465,21305.0,21304.0,4.111948]
[1673990205098,0.09422465,21305.0,21304.0,2.02356484]
[1673990205352,0.09422465,21305.0,21304.0,1.86445966]
[1673990206656,0.09422465,21305.0,21304.0,2.27653579]
[1673990207476,0.09422465,21305.0,21304.0,2.16445966]
[1673990209007,0.09422465,21305.0,21304.0,2.15595966]
[1673990209522,0.09422465,21305.0,21304.0,1.99343839]
[1673990212306,0.09422465,21305.0,21304.0,2.06833839]
[1673990214128,0.09422465,21305.0,21304.0,3.21342415]
[1673990214402,0.007,21305.0,21304.0,3.0633521]
[1673990215502,0.007,21305.0,21304.0,2.45702044]
[1673990215760,0.007,21305.0,21304.0,2.18036314]
[1673990215981,0.007,21305.0,21304.0,2.06833839]
[1673990218650,0.007,21305.0,21304.0,1.99343839]
[1673990221919,0.007,21305.0,21304.0,2.10546314]
[1673990222724,0.007,21305.0,21304.0,2.93298111]
[1673990223279,0.00630001,21305.0,21304.0,3.1958281]
[1673990224069,0.00630001,21305.0,21304.0,2.87779584]
[1673990224334,0.00630001,21305.0,21304.0,3.0461209]
[1673990224590,0.00630001,21305.0,21304.0,3.41900621]
[1673990224844,0.00630001,21305.0,21304.0,3.6434329]
[1673990225106,0.00630001,21305.0,21304.0,3.56900621]
[1673990225632,0.01288818,21310.0,21305.0,0.15241181]
[1673990225926,0.01288818,21310.0,21309.0,0.69656195]
[1673990226207,0.01288818,21310.0,21309.0,3.12787857]
[1673990226208,0.01192642,21310.0,21309.0,3.12787857]
[1673990226465,0.01192642,21310.0,21309.0,3.33948482]
[1673990226751,0.01192642,21310.0,21309.0,3.33948222]
[1673990227052,0.01192642,21310.0,21309.0,3.33948209]
[1673990227575,0.01292642,21310.0,21309.0,3.43422755]
[1673990227833,0.01292642,21310.0,21309.0,3.16165537]
[1673990227834,0.01192642,21310.0,21309.0,3.16165537]
[1673990228119,0.01192642,21310.0,21309.0,3.17015537]
[1673990228373,0.00748215,21313.0,21309.0,3.17015537]
[1673990228374,0.00748215,21313.0,21310.0,0.15]
[1673990228636,0.00748215,21313.0,21312.0,0.4344]
[1673990228899,0.00748215,21313.0,21312.0,2.007601]
[1673990229408,0.00748215,21313.0,21312.0,1.857601]
[1673990229926,0.00748215,21313.0,21312.0,2.04900183]
[1673990230440,0.00748215,21313.0,21312.0,2.53470352]
[1673990230693,0.00748215,21313.0,21312.0,2.79681875]
[1673990230942,0.00748215,21313.0,21312.0,2.51251875]
[1673990231217,0.00748215,21313.0,21312.0,2.42051875]
[1673990231480,0.00748215,21313.0,21312.0,3.39076975]
[1673990231737,0.00748215,21313.0,21312.0,2.63501352]
[1673990232261,0.00748215,21313.0,21312.0,2.54301352]
[1673990232764,0.00748215,21313.0,21312.0,2.25040352]
[1673990233310,0.00748215,21313.0,21312.0,2.51247651]
[1673990233816,0.00748215,21313.0,21312.0,2.40040352]
[1673990234070,0.00748215,21313.0,21312.0,3.28016083]
[1673990234333,0.00748215,21313.0,21312.0,3.28015695]
[1673990234584,0.00748215,21313.0,21312.0,2.51247651]
[1673990235415,0.00748215,21313.0,21312.0,3.17277047]
[1673990235641,0.00748215,21313.0,21312.0,3.39250294]
[1673990235858,0.00748215,21313.0,21312.0,3.3924561]
[1673990236407,0.00748215,21313.0,21312.0,3.67641806]
[1673990236408,0.00335166,21313.0,21312.0,3.67641806]
[1673990236677,0.00335166,21313.0,21312.0,3.99509063]
[1673990236941,0.00335166,21313.0,21312.0,4.01704991]
[1673990237215,0.00748215,21314.0,21312.0,3.96055298]
[1673990237470,0.00748215,21314.0,21313.0,2.90275282]
[1673990237712,0.00748215,21314.0,21313.0,3.07343865]
[1673990237971,0.00748215,21314.0,21313.0,3.72144903]
[1673990238264,5.99361953,21317.0,21314.0,0.15]
[1673990238488,5.99361953,21317.0,21316.0,0.1487]
[1673990238751,5.99361953,21317.0,21316.0,2.33480169]
[1673990239044,5.99265963,21317.0,21316.0,2.34330169]
[1673990239305,5.99226473,21317.0,21316.0,2.34330169]
[1673990240096,5.99226473,21317.0,21316.0,2.43530169]
[1673990240335,5.99226473,21317.0,21316.0,2.34330169]
[1673990240588,5.99226473,21317.0,21316.0,2.44523161]
[1673990240862,5.99226473,21317.0,21316.0,2.53723161]
[1673990242108,5.99226473,21317.0,21316.0,2.38723161]
[1673990242639,5.99226473,21317.0,21316.0,2.44523161]
[1673990242868,5.99226473,21317.0,21316.0,2.43723161]
[1673990243418,5.99226473,21317.0,21316.0,2.19523161]
[1673990243651,5.99226473,21317.0,21316.0,2.28723161]
[1673990244905,5.99226473,21317.0,21316.0,1.50152992]
[1673990245463,5.99226473,21317.0,21316.0,1.75300351]
[1673990246439,5.39303826,21317.0,21316.0,2.2302052]